[Event "Titled Tuesday Blitz February 28 Late 2023"]
[White "Ibarra Jerez, Jose Carlos"]
[Black "Ristic, Nebojsa B"]
[WhiteFideId "2226332"]
[BlackFideId "935468"]
[WhiteElo "2638"]
[BlackElo "2303"]
[Result "1-0"]
[Round "05"]
[TimeControl "180+2"]
[Date "2023.02.28"]
[WhiteClock "0:00:41"]
[BlackClock "0:01:18"]

1. e4 {[%clk 0:02:58]}  Nc6 {[%clk 0:02:59]} 2. Nf3 {[%clk 0:02:57]}  d6 {[%clk 0:03:00]} 3. d4 {[%clk 0:02:57]}  Nf6 {[%clk 0:03:00]} 4. Nc3 {[%clk 0:02:58]}  g6 {[%clk 0:03:01]} 5. Be3 {[%clk 0:02:56]}  Bg7 {[%clk 0:03:01]} 6. Qd2 {[%clk 0:02:56]}  O-O {[%clk 0:03:01]} 7. Bh6 {[%clk 0:02:50]}  e5 {[%clk 0:02:55]} 8. d5 {[%clk 0:02:47]}  Ne7 {[%clk 0:02:54]} 9. h4 {[%clk 0:02:46]}  Bg4 {[%clk 0:02:50]} 10. Ng1 {[%clk 0:02:39]}  c6 {[%clk 0:02:45]} 11. f3 {[%clk 0:02:38]}  Bd7 {[%clk 0:02:44]} 12. dxc6 {[%clk 0:02:31]}  Bxc6 {[%clk 0:02:43]} 13. h5 {[%clk 0:02:28]}  d5 {[%clk 0:02:41]} 14. hxg6 {[%clk 0:02:26]}  fxg6 {[%clk 0:02:42]} 15. exd5 {[%clk 0:02:23]}  Nexd5 {[%clk 0:02:40]} 16. Bc4 {[%clk 0:02:22]}  Kh8 {[%clk 0:02:36]} 17. Bxg7+ {[%clk 0:02:20]}  Kxg7 {[%clk 0:02:36]} 18. Qh6+ {[%clk 0:02:21]}  Kh8 {[%clk 0:02:35]} 19. O-O-O {[%clk 0:02:15]}  Qa5 {[%clk 0:02:18]} 20. Nxd5 {[%clk 0:01:57]}  Bxd5 {[%clk 0:02:12]} 21. Rxd5 {[%clk 0:01:56]}  Qb4 {[%clk 0:02:00]} 22. Rd7 {[%clk 0:01:43]}  Qe1+ {[%clk 0:02:00]} 23. Rd1 {[%clk 0:01:42]}  Qb4 {[%clk 0:02:00]} 24. Bb3 {[%clk 0:01:25]}  Rfd8 {[%clk 0:01:54]} 25. Ne2 {[%clk 0:01:17]}  a5 {[%clk 0:01:49]} 26. Rxd8+ {[%clk 0:01:10]}  Rxd8 {[%clk 0:01:50]} 27. c3 {[%clk 0:01:03]}  Qb6 {[%clk 0:01:46]} 28. Qxg6 {[%clk 0:00:44]}  Qe3+ {[%clk 0:01:21]} 29. Kb1 {[%clk 0:00:44]}  a4 {[%clk 0:01:18]} 30. Qxf6# {[%clk 0:00:41]} 1-0


[Site "https://www.chess.com"]

[Event "Titled Tuesday Blitz February 28 Late 2023"]
[White "Oro, Faustino"]
[Black "ArchibaldCerveza29"]
[WhiteFideId "20000197"]
[WhiteElo "1984"]
[BlackElo "2505"]
[Result "1-0"]
[Round "05"]
[TimeControl "180+2"]
[Date "2023.02.28"]
[WhiteClock "0:00:03"]
[BlackClock "0:00:01"]

1. e4 {[%clk 0:03:00]}  e5 {[%clk 0:02:58]} 2. Nf3 {[%clk 0:03:00]}  Nc6 {[%clk 0:02:57]} 3. Bb5 {[%clk 0:02:59]}  g6 {[%clk 0:02:57]} 4. O-O {[%clk 0:02:58]}  Bg7 {[%clk 0:02:57]} 5. c3 {[%clk 0:02:58]}  a6 {[%clk 0:02:56]} 6. Ba4 {[%clk 0:02:57]}  Nge7 {[%clk 0:02:56]} 7. Re1 {[%clk 0:02:56]}  b5 {[%clk 0:02:56]} 8. Bc2 {[%clk 0:02:56]}  O-O {[%clk 0:02:56]} 9. d4 {[%clk 0:02:53]}  exd4 {[%clk 0:02:57]} 10. cxd4 {[%clk 0:02:54]}  d5 {[%clk 0:02:57]} 11. e5 {[%clk 0:02:53]}  Bg4 {[%clk 0:02:56]} 12. Be3 {[%clk 0:02:48]}  f6 {[%clk 0:02:41]} 13. exf6 {[%clk 0:02:42]}  Rxf6 {[%clk 0:02:40]} 14. Nbd2 {[%clk 0:02:42]}  Qd6 {[%clk 0:01:55]} 15. h3 {[%clk 0:02:34]}  Bf5 {[%clk 0:01:55]} 16. Bg5 {[%clk 0:02:23]}  Rf7 {[%clk 0:01:51]} 17. Bxe7 {[%clk 0:02:18]}  Nxe7 {[%clk 0:01:52]} 18. Ne5 {[%clk 0:02:13]}  Rff8 {[%clk 0:01:45]} 19. Ndf3 {[%clk 0:02:00]}  Rae8 {[%clk 0:01:27]} 20. Bb3 {[%clk 0:01:37]}  Kh8 {[%clk 0:01:23]} 21. Qd2 {[%clk 0:01:30]}  Be4 {[%clk 0:01:19]} 22. Ng5 {[%clk 0:01:28]}  Bxe5 {[%clk 0:01:10]} 23. dxe5 {[%clk 0:01:23]}  Qxe5 {[%clk 0:01:10]} 24. f3 {[%clk 0:01:09]}  Rf5 {[%clk 0:00:57]} 25. h4 {[%clk 0:00:52]}  Rf4 {[%clk 0:00:20]} 26. fxe4 {[%clk 0:00:45]}  dxe4 {[%clk 0:00:15]} 27. Nf7+ {[%clk 0:00:40]}  Rxf7 {[%clk 0:00:14]} 28. Bxf7 {[%clk 0:00:40]}  Rf8 {[%clk 0:00:15]} 29. Rf1 {[%clk 0:00:38]}  Nf5 {[%clk 0:00:13]} 30. Bb3 {[%clk 0:00:32]}  Qc5+ {[%clk 0:00:13]} 31. Qf2 {[%clk 0:00:18]}  e3 {[%clk 0:00:12]} 32. Qe2 {[%clk 0:00:18]}  Rd8 {[%clk 0:00:06]} 33. Rac1 {[%clk 0:00:15]}  Qb6 {[%clk 0:00:05]} 34. Rfd1 {[%clk 0:00:05]}  Nd4 {[%clk 0:00:02]} 35. Qxe3 {[%clk 0:00:02]}  Ne2+ {[%clk 0:00:02]} 36. Kf2 {[%clk 0:00:03]}  Rf8+ {[%clk 0:00:01]} 37. Kxe2 {[%clk 0:00:03]} 1-0


[Site "https://www.chess.com"]

[Event "Titled Tuesday Blitz February 28 Late 2023"]
[White "Filgueira, Hernan"]
[Black "Fiorito, Francisco"]
[WhiteFideId "101770"]
[BlackFideId "180165"]
[WhiteElo "2363"]
[BlackElo "2341"]
[Result "0-1"]
[Round "05"]
[TimeControl "180+2"]
[Date "2023.02.28"]
[WhiteClock "0:01:07"]
[BlackClock "0:01:23"]

1. c4 {[%clk 0:02:59]}  Nf6 {[%clk 0:02:59]} 2. Nc3 {[%clk 0:02:58]}  d5 {[%clk 0:02:55]} 3. cxd5 {[%clk 0:02:57]}  Nxd5 {[%clk 0:02:56]} 4. g3 {[%clk 0:02:57]}  g6 {[%clk 0:02:55]} 5. Bg2 {[%clk 0:02:57]}  Nxc3 {[%clk 0:02:55]} 6. bxc3 {[%clk 0:02:57]}  Bg7 {[%clk 0:02:56]} 7. Rb1 {[%clk 0:02:58]}  c6 {[%clk 0:02:56]} 8. h4 {[%clk 0:02:57]}  h5 {[%clk 0:02:56]} 9. Nf3 {[%clk 0:02:56]}  O-O {[%clk 0:02:56]} 10. O-O {[%clk 0:02:55]}  Nd7 {[%clk 0:02:53]} 11. Qc2 {[%clk 0:02:53]}  Nc5 {[%clk 0:02:52]} 12. d3 {[%clk 0:02:53]}  Be6 {[%clk 0:02:49]} 13. Be3 {[%clk 0:02:48]}  b6 {[%clk 0:02:39]} 14. Bxc5 {[%clk 0:02:40]}  bxc5 {[%clk 0:02:40]} 15. Ng5 {[%clk 0:02:40]}  Bd7 {[%clk 0:02:36]} 16. Ne4 {[%clk 0:02:37]}  Qa5 {[%clk 0:02:34]} 17. Rb7 {[%clk 0:02:28]}  Rfd8 {[%clk 0:02:25]} 18. c4 {[%clk 0:02:19]}  Rab8 {[%clk 0:02:13]} 19. Rfb1 {[%clk 0:02:13]}  Rxb7 {[%clk 0:02:13]} 20. Rxb7 {[%clk 0:02:13]}  Bd4 {[%clk 0:02:11]} 21. Qb1 {[%clk 0:02:09]}  Kg7 {[%clk 0:02:04]} 22. e3 {[%clk 0:02:02]}  Be5 {[%clk 0:02:03]} 23. f4 {[%clk 0:02:02]}  Bf6 {[%clk 0:02:00]} 24. Nxf6 {[%clk 0:02:02]}  exf6 {[%clk 0:02:00]} 25. Rb2 {[%clk 0:01:47]}  Bf5 {[%clk 0:01:59]} 26. e4 {[%clk 0:01:46]}  Bg4 {[%clk 0:01:58]} 27. Qc2 {[%clk 0:01:38]}  Qe1+ {[%clk 0:01:58]} 28. Kh2 {[%clk 0:01:38]}  Qe3 {[%clk 0:01:57]} 29. Rb3 {[%clk 0:01:35]}  Be2 {[%clk 0:01:56]} 30. Qb2 {[%clk 0:01:30]}  Bxd3 {[%clk 0:01:46]} 31. e5 {[%clk 0:01:24]}  fxe5 {[%clk 0:01:46]} 32. fxe5 {[%clk 0:01:23]}  Rd4 {[%clk 0:01:46]} 33. e6 {[%clk 0:01:21]}  fxe6 {[%clk 0:01:41]} 34. Rb7+ {[%clk 0:01:19]}  Kh6 {[%clk 0:01:40]} 35. Rxa7 {[%clk 0:01:18]}  Qe5 {[%clk 0:01:31]} 36. Qb7 {[%clk 0:01:16]}  Rxh4+ {[%clk 0:01:30]} 37. Bh3 {[%clk 0:01:08]}  Qe2+ {[%clk 0:01:24]} 38. Kg1 {[%clk 0:01:08]}  Qe3+ {[%clk 0:01:24]} 39. Kh2 {[%clk 0:01:07]}  Qf2+ {[%clk 0:01:23]} 0-1


[Site "https://www.chess.com"]

[Event "Titled Tuesday Blitz February 28 Late 2023"]
[White "Bjelobrk, Igor"]
[Black "Toncheva, Nadya"]
[WhiteFideId "4300726"]
[BlackFideId "2924056"]
[WhiteElo "2335"]
[BlackElo "2101"]
[Result "1-0"]
[Round "05"]
[TimeControl "180+2"]
[Date "2023.02.28"]
[WhiteClock "0:00:28"]
[BlackClock "0:00:04"]

1. d4 {[%clk 0:03:00]}  d5 {[%clk 0:02:59]} 2. c4 {[%clk 0:02:59]}  dxc4 {[%clk 0:02:59]} 3. Nf3 {[%clk 0:02:58]}  Nf6 {[%clk 0:02:59]} 4. e3 {[%clk 0:02:58]}  Bg4 {[%clk 0:03:00]} 5. Bxc4 {[%clk 0:02:57]}  e6 {[%clk 0:03:00]} 6. h3 {[%clk 0:02:45]}  Bh5 {[%clk 0:03:00]} 7. Nc3 {[%clk 0:02:45]}  a6 {[%clk 0:02:59]} 8. g4 {[%clk 0:02:42]}  Bg6 {[%clk 0:02:58]} 9. Ne5 {[%clk 0:02:42]}  Nbd7 {[%clk 0:02:59]} 10. Nxg6 {[%clk 0:02:40]}  hxg6 {[%clk 0:03:00]} 11. Qf3 {[%clk 0:02:40]}  c6 {[%clk 0:02:56]} 12. Bd2 {[%clk 0:02:38]}  Be7 {[%clk 0:02:49]} 13. O-O-O {[%clk 0:02:36]}  Nd5 {[%clk 0:02:30]} 14. Kb1 {[%clk 0:02:32]}  b5 {[%clk 0:02:26]} 15. Bb3 {[%clk 0:02:31]}  Qb6 {[%clk 0:02:17]} 16. e4 {[%clk 0:02:24]}  Nxc3+ {[%clk 0:02:11]} 17. Bxc3 {[%clk 0:02:24]}  b4 {[%clk 0:02:09]} 18. Be1 {[%clk 0:02:21]}  Bf6 {[%clk 0:01:39]} 19. e5 {[%clk 0:02:15]}  Be7 {[%clk 0:01:39]} 20. Ba4 {[%clk 0:02:08]}  Rc8 {[%clk 0:01:37]} 21. Ka1 {[%clk 0:01:42]}  Bh4 {[%clk 0:01:07]} 22. Qe4 {[%clk 0:01:26]}  O-O {[%clk 0:01:02]} 23. f4 {[%clk 0:01:24]}  Bxe1 {[%clk 0:00:58]} 24. Rhxe1 {[%clk 0:01:25]}  Rfd8 {[%clk 0:00:48]} 25. f5 {[%clk 0:01:25]}  Nf8 {[%clk 0:00:43]} 26. f6 {[%clk 0:01:21]}  c5 {[%clk 0:00:39]} 27. Qf4 {[%clk 0:01:01]}  cxd4 {[%clk 0:00:35]} 28. Rf1 {[%clk 0:00:56]}  Rc7 {[%clk 0:00:15]} 29. h4 {[%clk 0:00:55]}  Qa5 {[%clk 0:00:13]} 30. Bb3 {[%clk 0:00:54]}  Rdc8 {[%clk 0:00:11]} 31. h5 {[%clk 0:00:53]}  gxh5 {[%clk 0:00:04]} 32. gxh5 {[%clk 0:00:54]}  Nh7 {[%clk 0:00:05]} 33. Rg1 {[%clk 0:00:51]}  Kh8 {[%clk 0:00:03]} 34. fxg7+ {[%clk 0:00:36]}  Kg8 {[%clk 0:00:03]} 35. Qxd4 {[%clk 0:00:35]}  Qc5 {[%clk 0:00:03]} 36. Qxc5 {[%clk 0:00:35]}  Rxc5 {[%clk 0:00:04]} 37. Rde1 {[%clk 0:00:34]}  R5c7 {[%clk 0:00:01]} 38. h6 {[%clk 0:00:34]}  Rc5 {[%clk 0:00:02]} 39. Kb1 {[%clk 0:00:34]}  R5c7 {[%clk 0:00:02]} 40. Rg4 {[%clk 0:00:34]}  Rc5 {[%clk 0:00:03]} 41. Rxb4 {[%clk 0:00:34]}  a5 {[%clk 0:00:03]} 42. Rd4 {[%clk 0:00:34]}  Ng5 {[%clk 0:00:03]} 43. Red1 {[%clk 0:00:30]}  Nf3 {[%clk 0:00:03]} 44. Rd8+ {[%clk 0:00:29]}  Kh7 {[%clk 0:00:04]} 45. g8=Q+ {[%clk 0:00:28]} 1-0


[Site "https://www.chess.com"]

[Event "Titled Tuesday Blitz February 28 Late 2023"]
[White "Molenda, Marcin"]
[Black "Gerzhoy, Leonid"]
[WhiteFideId "1173065"]
[BlackFideId "2806126"]
[WhiteElo "2286"]
[BlackElo "2622"]
[Result "1/2-1/2"]
[Round "05"]
[TimeControl "180+2"]
[Date "2023.02.28"]
[WhiteClock "0:01:19"]
[BlackClock "0:00:32"]

1. e4 {[%clk 0:03:00]}  d6 {[%clk 0:02:58]} 2. d4 {[%clk 0:03:00]}  Nf6 {[%clk 0:02:57]} 3. Nc3 {[%clk 0:03:01]}  e5 {[%clk 0:02:57]} 4. Nf3 {[%clk 0:02:57]}  Nc6 {[%clk 0:02:54]} 5. d5 {[%clk 0:02:56]}  Ne7 {[%clk 0:02:53]} 6. h3 {[%clk 0:02:56]}  g6 {[%clk 0:02:53]} 7. Be3 {[%clk 0:02:55]}  Bg7 {[%clk 0:02:52]} 8. Bb5+ {[%clk 0:02:53]}  c6 {[%clk 0:02:49]} 9. dxc6 {[%clk 0:02:52]}  bxc6 {[%clk 0:02:49]} 10. Bc4 {[%clk 0:02:51]}  O-O {[%clk 0:02:48]} 11. O-O {[%clk 0:02:50]}  d5 {[%clk 0:02:47]} 12. Bc5 {[%clk 0:02:34]}  Be6 {[%clk 0:02:22]} 13. Nxe5 {[%clk 0:02:27]}  Nxe4 {[%clk 0:02:20]} 14. Nxe4 {[%clk 0:01:56]}  Bxe5 {[%clk 0:02:18]} 15. Ng5 {[%clk 0:01:53]}  dxc4 {[%clk 0:02:07]} 16. Qxd8 {[%clk 0:01:52]}  Rfxd8 {[%clk 0:02:06]} 17. Bxe7 {[%clk 0:01:52]}  Rd2 {[%clk 0:02:04]} 18. Rae1 {[%clk 0:01:42]}  Bxb2 {[%clk 0:01:58]} 19. Nxe6 {[%clk 0:01:42]}  fxe6 {[%clk 0:01:57]} 20. Rxe6 {[%clk 0:01:41]}  Rxc2 {[%clk 0:01:53]} 21. Rxc6 {[%clk 0:01:40]}  Bd4 {[%clk 0:01:44]} 22. Bc5 {[%clk 0:01:37]}  Bxc5 {[%clk 0:01:26]} 23. Rxc5 {[%clk 0:01:38]}  Re8 {[%clk 0:01:18]} 24. Rd1 {[%clk 0:01:37]}  Re7 {[%clk 0:01:08]} 25. a4 {[%clk 0:01:35]}  c3 {[%clk 0:00:59]} 26. Rd3 {[%clk 0:01:32]}  Re1+ {[%clk 0:00:54]} 27. Kh2 {[%clk 0:01:32]}  Rxf2 {[%clk 0:00:54]} 28. Rd7 {[%clk 0:01:19]}  Rf7 {[%clk 0:00:45]} 29. Rxf7 {[%clk 0:01:18]}  Kxf7 {[%clk 0:00:45]} 30. Rxc3 {[%clk 0:01:19]}  Re4 {[%clk 0:00:37]} 31. Rc7+ {[%clk 0:01:17]}  Re7 {[%clk 0:00:36]} 32. Rc6 {[%clk 0:01:18]}  Re6 {[%clk 0:00:32]} 33. Rc7+ {[%clk 0:01:18]}  Re7 {[%clk 0:00:32]} 34. Rc6 {[%clk 0:01:18]}  Re6 {[%clk 0:00:32]} 35. Rc7+ {[%clk 0:01:19]}  Re7 {[%clk 0:00:32]} 1/2-1/2


[Site "https://www.chess.com"]

[Event "Titled Tuesday Blitz February 28 Late 2023"]
[White "Plenca, Jadranko"]
[Black "Kochetov, Andrey"]
[WhiteFideId "14527146"]
[BlackFideId "24130532"]
[WhiteElo "2491"]
[BlackElo "2477"]
[Result "1-0"]
[Round "05"]
[TimeControl "180+2"]
[Date "2023.02.28"]
[WhiteClock "0:01:11"]
[BlackClock "0:00:07"]

1. e4 {[%clk 0:03:00]}  c5 {[%clk 0:02:59]} 2. Nf3 {[%clk 0:02:57]}  d6 {[%clk 0:02:59]} 3. Bb5+ {[%clk 0:02:57]}  Nc6 {[%clk 0:02:59]} 4. O-O {[%clk 0:02:49]}  Bd7 {[%clk 0:02:59]} 5. Re1 {[%clk 0:02:49]}  a6 {[%clk 0:02:58]} 6. Bf1 {[%clk 0:02:50]}  Bg4 {[%clk 0:02:58]} 7. c3 {[%clk 0:02:50]}  g6 {[%clk 0:02:57]} 8. d3 {[%clk 0:02:42]}  Bg7 {[%clk 0:02:54]} 9. Nbd2 {[%clk 0:02:42]}  Nf6 {[%clk 0:02:50]} 10. h3 {[%clk 0:02:43]}  Bxf3 {[%clk 0:02:50]} 11. Nxf3 {[%clk 0:02:43]}  O-O {[%clk 0:02:51]} 12. d4 {[%clk 0:02:43]}  cxd4 {[%clk 0:02:41]} 13. cxd4 {[%clk 0:02:43]}  Nd7 {[%clk 0:02:39]} 14. Be3 {[%clk 0:02:37]}  b5 {[%clk 0:02:35]} 15. Rc1 {[%clk 0:02:36]}  Rc8 {[%clk 0:02:34]} 16. a4 {[%clk 0:02:33]}  Qa5 {[%clk 0:02:18]} 17. axb5 {[%clk 0:02:29]}  axb5 {[%clk 0:02:16]} 18. Qb3 {[%clk 0:02:28]}  b4 {[%clk 0:01:47]} 19. Ra1 {[%clk 0:02:23]}  Qb6 {[%clk 0:01:34]} 20. Ra6 {[%clk 0:01:27]}  Qb7 {[%clk 0:01:33]} 21. Rea1 {[%clk 0:01:26]}  Ra8 {[%clk 0:00:35]} 22. d5 {[%clk 0:01:24]}  Nce5 {[%clk 0:00:31]} 23. Nxe5 {[%clk 0:01:24]}  Nxe5 {[%clk 0:00:32]} 24. Ra7 {[%clk 0:01:23]}  Rxa7 {[%clk 0:00:23]} 25. Rxa7 {[%clk 0:01:23]}  Qc8 {[%clk 0:00:23]} 26. Rxe7 {[%clk 0:01:19]}  Nd7 {[%clk 0:00:19]} 27. Qxb4 {[%clk 0:01:17]}  Nc5 {[%clk 0:00:19]} 28. e5 {[%clk 0:01:15]}  Na6 {[%clk 0:00:08]} 29. Qxd6 {[%clk 0:01:14]}  Rd8 {[%clk 0:00:07]} 30. Qxa6 {[%clk 0:01:11]} 1-0


[Site "https://www.chess.com"]

[Event "Titled Tuesday Blitz February 28 Late 2023"]
[White "Yeritsyan, Hayk"]
[Black "Gubajdullin, Alexei"]
[WhiteFideId "13307320"]
[BlackFideId "4141202"]
[WhiteElo "2476"]
[BlackElo "2285"]
[Result "0-1"]
[Round "05"]
[TimeControl "180+2"]
[Date "2023.02.28"]
[WhiteClock "0:00:04"]
[BlackClock "0:02:14"]

1. d4 {[%clk 0:03:00]}  Nf6 {[%clk 0:02:59]} 2. Nf3 {[%clk 0:03:01]}  g6 {[%clk 0:02:59]} 3. Bf4 {[%clk 0:03:00]}  Bg7 {[%clk 0:02:59]} 4. h3 {[%clk 0:03:01]}  O-O {[%clk 0:03:00]} 5. e3 {[%clk 0:03:02]}  d6 {[%clk 0:03:00]} 6. c3 {[%clk 0:03:02]}  Nc6 {[%clk 0:03:01]} 7. Be2 {[%clk 0:03:03]}  Nd7 {[%clk 0:03:01]} 8. O-O {[%clk 0:03:04]}  e5 {[%clk 0:03:01]} 9. Bh2 {[%clk 0:03:05]}  f5 {[%clk 0:03:02]} 10. Na3 {[%clk 0:03:05]}  g5 {[%clk 0:03:01]} 11. Nc4 {[%clk 0:03:01]}  g4 {[%clk 0:03:00]} 12. hxg4 {[%clk 0:03:01]}  fxg4 {[%clk 0:03:00]} 13. Nfd2 {[%clk 0:03:02]}  exd4 {[%clk 0:02:53]} 14. cxd4 {[%clk 0:03:02]}  h5 {[%clk 0:02:52]} 15. Rc1 {[%clk 0:02:54]}  Nf6 {[%clk 0:02:49]} 16. b4 {[%clk 0:02:45]}  h4 {[%clk 0:02:46]} 17. Bf4 {[%clk 0:02:36]}  Ne7 {[%clk 0:02:39]} 18. g3 {[%clk 0:02:32]}  Ned5 {[%clk 0:02:25]} 19. Bg5 {[%clk 0:02:01]}  hxg3 {[%clk 0:02:24]} 20. fxg3 {[%clk 0:01:57]}  Qe8 {[%clk 0:02:23]} 21. Bd3 {[%clk 0:01:47]}  b5 {[%clk 0:02:22]} 22. Nb2 {[%clk 0:00:52]}  Nxe3 {[%clk 0:02:20]} 23. Qb3+ {[%clk 0:00:16]}  Be6 {[%clk 0:02:19]} 24. Qc3 {[%clk 0:00:12]}  Nfd5 {[%clk 0:02:18]} 25. Rxf8+ {[%clk 0:00:06]}  Qxf8 {[%clk 0:02:17]} 26. Qa3 {[%clk 0:00:05]}  Bxd4 {[%clk 0:02:16]} 27. Kh2 {[%clk 0:00:03]}  Qf2+ {[%clk 0:02:14]} 28. Kh1 {[%clk 0:00:04]}  Qg2# {[%clk 0:02:14]} 0-1


[Site "https://www.chess.com"]

[Event "Titled Tuesday Blitz February 28 Late 2023"]
[White "Karamsetty, Jeevan"]
[Black "Saveliev, Alexei"]
[WhiteFideId "2025337"]
[BlackFideId "24128546"]
[WhiteElo "2111"]
[BlackElo "2271"]
[Result "0-1"]
[Round "05"]
[TimeControl "180+2"]
[Date "2023.02.28"]
[WhiteClock "0:00:05"]
[BlackClock "0:01:09"]

1. e4 {[%clk 0:03:00]}  g6 {[%clk 0:02:57]} 2. d4 {[%clk 0:03:00]}  Bg7 {[%clk 0:02:58]} 3. Nf3 {[%clk 0:02:58]}  d6 {[%clk 0:02:58]} 4. Be3 {[%clk 0:02:56]}  Nc6 {[%clk 0:02:59]} 5. Be2 {[%clk 0:02:52]}  Nf6 {[%clk 0:02:58]} 6. Nbd2 {[%clk 0:02:51]}  O-O {[%clk 0:02:58]} 7. h3 {[%clk 0:02:48]}  Nd7 {[%clk 0:02:57]} 8. c3 {[%clk 0:02:46]}  e5 {[%clk 0:02:57]} 9. O-O {[%clk 0:02:44]}  f5 {[%clk 0:02:54]} 10. Bc4+ {[%clk 0:02:34]}  Kh8 {[%clk 0:02:53]} 11. Ng5 {[%clk 0:02:24]}  f4 {[%clk 0:02:45]} 12. Ne6 {[%clk 0:02:19]}  Qe7 {[%clk 0:02:45]} 13. Nxf8 {[%clk 0:02:19]}  Qxf8 {[%clk 0:02:41]} 14. Nf3 {[%clk 0:02:09]}  fxe3 {[%clk 0:02:40]} 15. fxe3 {[%clk 0:02:10]}  Qe7 {[%clk 0:02:40]} 16. Qe1 {[%clk 0:02:01]}  Nb6 {[%clk 0:02:39]} 17. Bb3 {[%clk 0:01:58]}  Na5 {[%clk 0:02:23]} 18. Qg3 {[%clk 0:01:46]}  Nxb3 {[%clk 0:02:21]} 19. axb3 {[%clk 0:01:47]}  Be6 {[%clk 0:02:17]} 20. Ng5 {[%clk 0:01:39]}  Bg8 {[%clk 0:02:16]} 21. d5 {[%clk 0:01:36]}  a6 {[%clk 0:02:14]} 22. Rf2 {[%clk 0:01:31]}  Rf8 {[%clk 0:01:58]} 23. Rxf8 {[%clk 0:01:23]}  Bxf8 {[%clk 0:01:59]} 24. Rf1 {[%clk 0:01:19]}  Bh6 {[%clk 0:01:59]} 25. h4 {[%clk 0:01:11]}  Nd7 {[%clk 0:01:59]} 26. Qg4 {[%clk 0:01:00]}  Bxg5 {[%clk 0:01:52]} 27. hxg5 {[%clk 0:00:59]}  Kg7 {[%clk 0:01:49]} 28. c4 {[%clk 0:00:58]}  a5 {[%clk 0:01:48]} 29. Qh4 {[%clk 0:00:57]}  b6 {[%clk 0:01:45]} 30. Qh6+ {[%clk 0:00:53]}  Kh8 {[%clk 0:01:44]} 31. g3 {[%clk 0:00:52]}  Bf7 {[%clk 0:01:42]} 32. Kg2 {[%clk 0:00:49]}  Kg8 {[%clk 0:01:42]} 33. Rh1 {[%clk 0:00:48]}  Be8 {[%clk 0:01:40]} 34. Rf1 {[%clk 0:00:49]}  Nc5 {[%clk 0:01:37]} 35. Qh3 {[%clk 0:00:36]}  Bd7 {[%clk 0:01:33]} 36. Qh4 {[%clk 0:00:34]}  Nxb3 {[%clk 0:01:33]} 37. Rf6 {[%clk 0:00:32]}  Nc5 {[%clk 0:01:29]} 38. Rf1 {[%clk 0:00:31]}  a4 {[%clk 0:01:28]} 39. Rd1 {[%clk 0:00:18]}  b5 {[%clk 0:01:27]} 40. cxb5 {[%clk 0:00:17]}  Bxb5 {[%clk 0:01:28]} 41. Rh1 {[%clk 0:00:15]}  Bd3 {[%clk 0:01:26]} 42. Rc1 {[%clk 0:00:12]}  Bxe4+ {[%clk 0:01:26]} 43. Kh2 {[%clk 0:00:12]}  Bxd5 {[%clk 0:01:25]} 44. Qb4 {[%clk 0:00:10]}  Kg7 {[%clk 0:01:16]} 45. Qh4 {[%clk 0:00:09]}  Qf7 {[%clk 0:01:09]} 46. Qh6+ {[%clk 0:00:06]}  Kg8 {[%clk 0:01:09]} 47. Qh3 {[%clk 0:00:05]}  Qf2+ {[%clk 0:01:09]} 0-1


[Site "https://www.chess.com"]

[Event "Titled Tuesday Blitz February 28 Late 2023"]
[White "Vovk, Orest"]
[Black "Sebag, Marie"]
[WhiteFideId "14113490"]
[BlackFideId "617822"]
[WhiteElo "2215"]
[BlackElo "2440"]
[Result "0-1"]
[Round "05"]
[TimeControl "180+2"]
[Date "2023.02.28"]
[WhiteClock "0:00:40"]
[BlackClock "0:01:09"]

1. h4 {[%clk 0:02:50]}  e5 {[%clk 0:02:56]} 2. h5 {[%clk 0:02:38]}  d5 {[%clk 0:02:55]} 3. h6 {[%clk 0:02:38]}  Nxh6 {[%clk 0:02:55]} 4. d4 {[%clk 0:02:37]}  Nf5 {[%clk 0:02:37]} 5. dxe5 {[%clk 0:02:37]}  Nc6 {[%clk 0:02:37]} 6. Nf3 {[%clk 0:02:34]}  Be6 {[%clk 0:02:36]} 7. Nc3 {[%clk 0:02:21]}  d4 {[%clk 0:02:34]} 8. Ne4 {[%clk 0:02:20]}  Qd5 {[%clk 0:02:25]} 9. Neg5 {[%clk 0:02:17]}  O-O-O {[%clk 0:02:07]} 10. Nxe6 {[%clk 0:02:14]}  Qxe6 {[%clk 0:02:04]} 11. a3 {[%clk 0:01:53]}  Nxe5 {[%clk 0:01:51]} 12. Nxe5 {[%clk 0:01:53]}  Qxe5 {[%clk 0:01:50]} 13. Qd3 {[%clk 0:01:53]}  Bc5 {[%clk 0:01:38]} 14. g3 {[%clk 0:01:42]}  Ne3 {[%clk 0:01:34]} 15. Rxh7 {[%clk 0:01:14]}  Rxh7 {[%clk 0:01:28]} 16. Qxh7 {[%clk 0:01:11]}  f5 {[%clk 0:01:28]} 17. Bxe3 {[%clk 0:00:58]}  dxe3 {[%clk 0:01:25]} 18. Bh3 {[%clk 0:00:42]}  Qxb2 {[%clk 0:01:09]} 19. Qxf5+ {[%clk 0:00:40]}  Kb8 {[%clk 0:01:09]} 0-1


[Site "https://www.chess.com"]

[Event "Titled Tuesday Blitz February 28 Late 2023"]
[White "Manelyuk, Daniil"]
[Black "Dudzinski, Pawel"]
[WhiteFideId "44173920"]
[BlackFideId "1117890"]
[WhiteElo "2259"]
[BlackElo "2099"]
[Result "1-0"]
[Round "05"]
[TimeControl "180+2"]
[Date "2023.02.28"]
[WhiteClock "0:00:40"]
[BlackClock "0:00:30"]

1. e4 {[%clk 0:02:44]}  c6 {[%clk 0:02:54]} 2. d4 {[%clk 0:02:44]}  d5 {[%clk 0:02:55]} 3. e5 {[%clk 0:02:44]}  c5 {[%clk 0:02:55]} 4. dxc5 {[%clk 0:02:44]}  e6 {[%clk 0:02:54]} 5. a3 {[%clk 0:02:42]}  Bxc5 {[%clk 0:02:52]} 6. Bd3 {[%clk 0:02:43]}  Nd7 {[%clk 0:02:50]} 7. Nf3 {[%clk 0:02:30]}  Ne7 {[%clk 0:02:50]} 8. b4 {[%clk 0:02:28]}  Bb6 {[%clk 0:02:49]} 9. Bb2 {[%clk 0:02:29]}  Ng6 {[%clk 0:02:50]} 10. O-O {[%clk 0:02:29]}  O-O {[%clk 0:02:49]} 11. Nbd2 {[%clk 0:02:25]}  Nf4 {[%clk 0:02:45]} 12. Re1 {[%clk 0:02:23]}  Nxd3 {[%clk 0:02:44]} 13. cxd3 {[%clk 0:02:24]}  a5 {[%clk 0:02:36]} 14. Nb3 {[%clk 0:02:23]}  Qe7 {[%clk 0:02:34]} 15. Qd2 {[%clk 0:02:19]}  a4 {[%clk 0:02:26]} 16. Nbd4 {[%clk 0:02:17]}  Nb8 {[%clk 0:02:24]} 17. Nb5 {[%clk 0:02:15]}  Bd7 {[%clk 0:02:19]} 18. Nd6 {[%clk 0:02:13]}  Ra7 {[%clk 0:02:19]} 19. Bd4 {[%clk 0:02:00]}  Bxd4 {[%clk 0:02:16]} 20. Nxd4 {[%clk 0:02:01]}  f6 {[%clk 0:02:00]} 21. f4 {[%clk 0:01:49]}  fxe5 {[%clk 0:01:49]} 22. fxe5 {[%clk 0:01:50]}  Nc6 {[%clk 0:01:50]} 23. Nxc6 {[%clk 0:01:43]}  Bxc6 {[%clk 0:01:49]} 24. Qe3 {[%clk 0:01:38]}  Raa8 {[%clk 0:01:47]} 25. b5 {[%clk 0:01:37]}  Be8 {[%clk 0:01:47]} 26. Rac1 {[%clk 0:01:29]}  Bg6 {[%clk 0:01:45]} 27. b6 {[%clk 0:01:29]}  Rad8 {[%clk 0:01:42]} 28. Rc7 {[%clk 0:01:28]}  Rd7 {[%clk 0:01:42]} 29. Rec1 {[%clk 0:01:27]}  Rfd8 {[%clk 0:01:43]} 30. Nxb7 {[%clk 0:01:24]}  d4 {[%clk 0:01:05]} 31. Qxd4 {[%clk 0:01:02]}  Rxc7 {[%clk 0:00:52]} 32. bxc7 {[%clk 0:00:50]}  Rxd4 {[%clk 0:00:44]} 33. c8=Q+ {[%clk 0:00:50]}  Qe8 {[%clk 0:00:42]} 34. Nd6 {[%clk 0:00:47]}  Qf8 {[%clk 0:00:34]} 35. Qxe6+ {[%clk 0:00:42]}  Bf7 {[%clk 0:00:33]} 36. Nxf7 {[%clk 0:00:41]}  Rd8 {[%clk 0:00:30]} 37. Nxd8+ {[%clk 0:00:40]} 1-0


[Site "https://www.chess.com"]